Cogmind - Beta 13 @@@ ROGUE MODE // 2024.05.21 @ 18:39:23 Player: Shiba Result: Destroyed by G-34 Mercenary with Small Laser Performance ------------- Evolutions (1) 500 Regions Visited (2) 400 Robots Destroyed (30) 150 Value Destroyed (594) 594 Prototype IDs (0) 0 Alien Tech Used (0) 0 Bonus (0) 0 TOTAL SCORE: 1644 Bonus ------- None Cogmind --------- Core Integrity 0/400 Matter 287/300 Energy 100/100 System Corruption 0% Temperature Cool (6) Movement Core (200) Ox3 Location -9/Materials Parts ------- > --- POWER (1) -------- (None) > --- PROPULSION (3) --- (None) > --- UTILITY (3) ------ Medium Storage Unit > --- WEAPON (2) ------- Light Assault Rifle > --- INVENTORY (10) --- Light Ion Engine Wheel Wheel Compact Wheel Welding Torch Welding Torch Mining Claw Peak State ------------ > --- POWER ------------ Light Nuclear Core > --- PROPULSION ------- Wheel Wheel Wheel > --- UTILITY ---------- Medium Storage Unit Structural Scanner Improved Terrain Scanner > --- WEAPON ----------- Assault Rifle Mining Claw > --- INVENTORY -------- Light Treads Light Treads Wheel Compact Wheel Medium Laser Welding Torch Welding Torch Mining Claw [Rating: 13] Favorites ----------- Power Light Ion Engine Engine Light Ion Engine Power Core Light Nuclear Core Propulsion Compact Wheel Treads Light Treads Wheel Compact Wheel Flight Unit Flight Unit Utility Structural Scanner Device Structural Scanner Storage Medium Storage Unit Weapon Assault Rifle Energy Gun Medium Laser Ballistic Gun Assault Rifle Slashing Weapon Mining Claw Build | -11 -10 -9 ------- Run | Yrd Mat Mat Slots Evolved 2 | . . 2 Power . | . . . Propulsion 1 | . . 1 Utility 1 | . . 1 Weapon . | . . . Parts Attached 29 | 6 9 14 Power 5 | 1 2 2 Engine 4 | 1 1 2 Core 1 | . 1 . Reactor . | . . . Propulsion 12 | 2 3 7 Treads 2 | . . 2 Leg . | . . . Wheel 6 | 2 3 1 Hover . | . . . Flight 4 | . . 4 Utility 4 | 1 2 1 Device 2 | . 1 1 Storage 2 | 1 1 . Processor . | . . . Hackware . | . . . Protection . | . . . Artifact . | . . . Weapon 8 | 2 2 4 Energy Gun 3 | . 1 2 Energy Cannon . | . . . Ballistic Gun 3 | 2 . 1 Ballistic Cannon . | . . . Launcher . | . . . Special Weapon . | . . . Impact Weapon . | . . . Slashing Weapon 2 | . 1 1 Piercing Weapon . | . . . Special Melee Weapon . | . . . Unidentified Prototypes . | . . . Parts Lost 19 | . 3 16 Power 4 | . 1 3 Propulsion 9 | . 1 8 Utility 2 | . . 2 Weapon 4 | . 1 3 Highest Loss Streak 7 | . 3 7 To Critical Strikes . | . . . Average Slot Usage (%) 89 | . 94 78 Engine 10 | . 12 5 Core 1 | . 1 2 Treads 1 | . . 5 Wheel 21 | . 27 7 Flight 3 | . . 12 Device 10 | . 9 12 Storage 13 | . 14 11 Energy Gun 1 | . 1 2 Ballistic Gun 15 | . 20 3 Slashing Weapon 9 | . 6 15 Naked Turns . | . . . Heaviest Build 21 | 13 20 21 Greatest Support 40 | 32 32 40 Greatest Overweight (x) 2 | . . 2 Average Overweight (x) . | . . . Largest Inventory Capacity 10 | 8 10 10 Average Capacity 9 | 6 8 10 Most Carried 10 | 6 10 10 Average Carried 7 | 2 8 8 Final Capacity 10 | 8 10 10 Final Carried 10 | 6 10 7 Class Distribution -------------------- 85% | Mutant 14% | Scavenger-Mutant Dominant Class ---------------- Mutant | -10/Materials Mutant | -9/Materials Resources | -11 -10 -9 ----------- Run | Yrd Mat Mat Matter Collected 583 | 243 231 109 Remotely . | . . . Salvage Created 933 | . 328 605 Parts 55 | . 20 35 Haulers Intercepted . | . . . Recyclers Shooed 3 | . 3 . Parts Field Recycled . | . . . Retrieved Matter . | . . . Parts Self-Destructed . | . . . Prevented . | . . . Kills | -11 -10 -9 ------- Run | Yrd Mat Mat Combat Hostiles Destroyed 25 | . 8 17 Melee 11 | . . 11 Guns 14 | . 8 6 Classes Destroyed 5 | . 4 1 Worker 2 | . 2 . Recycler 2 | . . 2 Operator 1 | . 1 . Swarmer 13 | . 2 11 Grunt 12 | . 6 6 Best Kill Streak 5 | . 3 5 Combat Bots Only 5 | . 2 5 Max Kills in Single Turn 2 | . 1 2 Gunslinging . | . . . Exploded . | . . . Melee 2 | . . 2 Uniques/NPCs Destroyed . | . . . Combat | -11 -10 -9 -------- Run | Yrd Mat Mat Hostile Shots Fired 243 | . 52 191 Missed 54 | . 14 40 Damage Taken 1897 | . 469 1428 Core 546 | . 144 402 Absorbed by Shields . | . . . Core Remaining (%) 71 | 100 42 . Volleys Fired 87 | . 40 47 Largest 2 | . 2 2 Hottest 70 | . 70 70 Shots Fired 121 | . 73 48 Gun 121 | . 73 48 Cannon . | . . . Launcher . | . . . Special . | . . . Kinetic 87 | . 64 23 Thermal 34 | . 9 25 Explosive . | . . . Electromagnetic . | . . . Robot Hit Streak 17 | . 17 8 Robot Miss Streak 4 | . 4 4 Penetration Max . | . . . Secondary Targets 1 | . 1 . Max Gunslinging Chain 1 | . 1 . Shots Hit Robots 105 | . 46 59 Core Hits 46 | . 21 25 Critical Kills . | . . . Critical Parts Destroyed . | . . . Critical Strikes 4 | . 1 3 Burn 4 | . 1 3 Melee Attacks 51 | . . 51 Impact . | . . . Slashing 51 | . . 51 Piercing . | . . . Sneak Attacks 2 | . . 2 Combat Hostiles . | . . . Follow-up Attacks 4 | . . 4 Damage Inflicted 1504 | . 505 999 Guns 866 | . 504 362 Cannons . | . . . Explosions . | . . . Melee 637 | . . 637 Ramming 1 | . 1 . Kinetic 530 | . 419 111 Thermal 336 | . 85 251 Explosive . | . . . Electromagnetic . | . . . Impact . | . . . Slashing 637 | . . 637 Piercing . | . . . Highest Corruption . | . . . Average Corruption . | . . . Corruption Purged . | . . . Corruption Blocked . | . . . Overload Shots . | . . . Overflow Damage 7 | . . 7 Projectiles . | . . . Explosions . | . . . Melee 7 | . . 7 Knockbacks . | . . . Impact . | . . . Kinetic . | . . . Secondary . | . . . Self-Inflicted Damage . | . . . Shots . | . . . Rammed 1 | . 1 . Targets Rammed 1 | . 1 . Kicked . | . . . Crushed . | . . . Highest Temperature 123 | . 123 20 Average Temperature 34 | . 59 7 Received Heat Transfer 651 | . 207 444 Siege Activations . | . . . Robots Corrupted . | . . . Combat Hostiles . | . . . Parts Fried . | . . . Impact Corruptions . | . . . Robots Melted . | . . . Combat Hostiles . | . . . Parts Melted 3 | . . 3 Heat Transferred 1295 | . 333 962 Parts Sabotaged . | . . . Parts Stolen . | . . . Parts Stripped . | . . . Power Chain Reactions . | . . . Alert | -11 -10 -9 ------- Run | Yrd Mat Mat Peak Influence 300 | . 255 300 Initial 8 | . . 8 Average 93 | . 88 125 Maximum Alert Level 1 | . 1 1 Low Security (%) 86 | 100 89 76 Level 1 13 | . 10 23 Level 2 . | . . . Level 3 . | . . . Level 4 . | . . . Level 5 . | . . . High Security . | . . . Max Security . | . . . Squads Dispatched 1 | . . 1 Investigation . | . . . Extermination . | . . . Reinforcement 1 | . . 1 Assault . | . . . Garrison . | . . . Intercept . | . . . Searches Triggered . | . . . Construction Impeded . | . . . Haulers Reinforced . | . . . Active Scanning Responses . | . . . Cargo Convoy Interrupts . | . . . Stealth | -11 -10 -9 --------- Run | Yrd Mat Mat Distress Signals . | . . . Communications Jammed . | . . . Distress Signals . | . . . Times Spotted 53 | . 21 32 Peak Tracking Total 7 | . 3 7 Tactical Retreats 11 | . 3 8 Traps | -11 -10 -9 ------- Run | Yrd Mat Mat Traps Triggered . | . . . Indirectly . | . . . Trap Hack Attempts . | . . . Triggered . | . . . Disarmed . | . . . Reprogrammed . | . . . Reused . | . . . Traps Extracted . | . . . Installed . | . . . Triggered . | . . . Machines | -11 -10 -9 ---------- Run | Yrd Mat Mat Machines Disabled . | . . . Max in Single Turn . | . . . Machines Repaired . | . . . Machines Dismantled . | . . . Machines Sabotaged . | . . . Overloaded Fab Kills . | . . . Hacking | -11 -10 -9 --------- Run | Yrd Mat Mat Machines Accessed 5 | . 4 1 Terminals 5 | . 4 1 Fabricators . | . . . Repair Stations . | . . . Recycling Units . | . . . Scanalyzers . | . . . Garrison Access . | . . . Total Hacks 13 | . 10 3 Successful 6 | . 4 2 Failed 7 | . 6 1 Catastrophic 5 | . 4 1 Database Lockouts . | . . . Manual 11 | . 8 3 Terminals 13 | . 10 3 Fabricators . | . . . Repair Stations . | . . . Recycling Units . | . . . Scanalyzers . | . . . Garrison Access . | . . . Terminal Hacks 3 | . 2 1 Unreport Threat 1 | . . 1 Zone Layout 2 | . 2 . Fabricator Hacks . | . . . Repair Station Hacks . | . . . Recycling Unit Hacks . | . . . Scanalyzer . | . . . Garrison Access Hacks . | . . . Unauthorized Hacks 3 | . 2 1 Terminals 3 | . 2 1 Botnet 3 | . 2 1 Fabricators . | . . . Repair Stations . | . . . Recycling Units . | . . . Scanalyzers . | . . . Garrison Access . | . . . Data Cores Recovered 1 | . 1 . Used . | . . . Hacking Detections 5 | . 4 1 Full Trace Events . | . . . Feedback Events . | . . . Feedback Blocked . | . . . Robot Schematics Acquired . | . . . Robots Built . | . . . Authchips . | . . . Time . | . . . Total Robot Build Rating . | . . . Part Schematics Acquired . | . . . Parts Built . | . . . Authchips . | . . . Time . | . . . Total Part Build Rating . | . . . Parts Repaired . | . . . Time . | . . . Parts Recycled . | . . . Recycled Matter . | . . . Retrieved Matter . | . . . Retrieved Components . | . . . Parts Scanalyzed . | . . . Part Schematics Acquired . | . . . Parts Damaged . | . . . Bothacking | -11 -10 -9 ------------ Run | Yrd Mat Mat Used RIF Installer . | . . . Robots Hacked . | . . . Non-combat . | . . . Combat . | . . . Robot Hacks Applied . | . . . Relay Couplers Released . | . . . Fabnet Peak Effective % . | . . . Robots Rewired . | . . . Allies Hacked . | . . . Hacks Repelled . | . . . Allies | -11 -10 -9 -------- Run | Yrd Mat Mat Total Allies . | . . . Largest Group . | . . . Highest-Rated Group . | . . . Highest-Rated Ally . | . . . Total Orders . | . . . Ally Attacks . | . . . Total Damage . | . . . Kills . | . . . Allies Corrupted . | . . . Allies Melted . | . . . Intel | -11 -10 -9 ------- Run | Yrd Mat Mat Robot Analysis Total . | . . . Derelict Logs Recovered . | . . . Drone Launches . | . . . Drone Recoveries . | . . . Exploration | -11 -10 -9 ------------- Run | Yrd Mat Mat Turns Passed 1424 | 89 918 417 Spaces Moved 957 | 77 760 120 Core 5 | 5 . . Treads 33 | . . 33 Legs . | . . . Wheels 882 | 72 760 50 Hover . | . . . Flight 37 | . . 37 Fastest Speed 50 | 50 80 80 Average Speed 95 | 96 92 117 Slowest Speed 202 | 100 100 202 Overloaded Moves . | . . . Propulsion Burnouts . | . . . Robots Hopped . | . . . Cave-ins Triggered . | . . . Exploration Rate (%) 32 | 5 82 11 Regions Visited 2 Branch Regions . Pre-discovered Areas . | . . . Known Exits Taken . | . . . Unknown Exits Taken 2 | 1 1 . Scrap Searched . | . . . Spaces Dug . | . . . Terrain Destroyed . | . . . Melee . | . . . Projectile . | . . . AOE . | . . . Terrain Rammed . | . . . Walls Destroyed . | . . . Machines Disabled . | . . . Actions | -11 -10 -9 --------- Run | Yrd Mat Mat Total 1254 | 88 909 257 Wait 110 | . 88 22 Move 955 | 76 759 120 Hop . | . . . Pick Up 20 | 6 7 7 Fast Attach 10 | 6 2 2 Attach 11 | . 2 9 Detach . | . . . Swap 8 | . 5 3 Drop 6 | . 5 1 Fire 87 | . 40 47 Melee 46 | . . 46 Ram 1 | . 1 . Kick . | . . . Crush . | . . . Escape Stasis . | . . . Rewire . | . . . Trap . | . . . Miscellaneous . | . . . Route ------- -11/Scrapyard -10/Materials (discovered 5 exits: *Mat x3 / [*Min] / [*Sub]) -9/Materials History --------- Turn | Location | Event 9 | -11/Scrapyard | Discovered new exit (range 16) 90 | -11/Scrapyard | Entered Materials 133 | -10/Materials | Discovered new exit (range 6) 170 | -10/Materials | Discovered new exit (range 10) 300 | -10/Materials | Build established: Mutant 410 | -10/Materials | Discovered new exit (range 11) 515 | -10/Materials | Core integrity fell below 50% 541 | -10/Materials | Lost 3 parts (1p1n1w) 590 | -10/Materials | Derelicts attacked the area 668 | -10/Materials | Discovered new exit (range 10) 764 | -10/Materials | Discovered new exit (range 10) 1008 | -10/Materials | Entered another Materials area 1008 | -9/Materials | Evolved 2 slots: Propulsion x1, Utility x1 1122 | -9/Materials | Lost 4 parts (1p2n1w) 1265 | -9/Materials | Core integrity fell below 50% 1303 | -9/Materials | Lost 7 parts (1p3n2u1w) 1303 | -9/Materials | Core integrity fell below 20% 1425 | -9/Materials | Destroyed by G-34 Mercenary with Small Laser Last Messages --------------- 01323_ G-34 Mercenary overheating. 01324_ R-06 Scavenger collects Lgt. Ion Engine. 01325_ K-01 Serf cleans the Terminal. 01325_ G-34 Mercenary overheating. 01326_ Destroyed Aluminum Leg. 01326_ G-34 Mercenary overheating. 01328_ Aluminum Leg melted. 01328_ Heat Sink melted. 01328_ G-34 Mercenary destroyed. 01331_ K-01 Serf collects debris. 01334_ Acquired 10 matter. 01347_ Acquired Lgt. Assault Rifle. 01351_ Lgt. Treads destroyed. 01358_ G-34 Mercenary destroyed. 01362_ Acquired 10 matter. 01364_ K-01 Serf collects debris. 01402_ Lgt. Treads destroyed. 01404_ Flight Unit destroyed. 01408_ Lgt. Ion Engine destroyed. 01412_ Med. Laser destroyed. Map ----- +----------------------------------------------------+ | ???????????????????????????? !| """ # ##?#?? | | ??????????????????????????## """ + ##???? | | ??????????????????????????## # ##???? | | ??????????????????????????## # ####?#?? | | ??????????????????????????## # ####???? | | ??????????????????????????## # ##?????? | | ??????????????????????????#########+## ##?????? | | ??????????????????????#?#?######### ##?????? | | ???????????????????????##???## # ######?? | | ????????????????????????#???## T # ######?? | | ?????????????????????????? ? # # **##?? | | ???????????????????? ????? # # **##?# | | ???????????????????????????? #= # ]]##?? | | ???????????????????????????? # =%+%=! ]]##?? | | ????????????????????#??? ? ? # # % ]]##?? | | ?????????????????????#??#???####### ]]##?? | | ?????????????????????? ????? # ######?? | | ?????????????????????????? ????? # ######?# | | ?????????????????????? ??????? ?? # #####??? | | ???????????????????????"????"???? # ###?? | | ????????????????????????????????" # ##??? | | ???????????????# ???????"?? """"" # ##?#? | | ???????????????# ################ ##??? | | ???????????????+ #] # ###?? | | ???????????????# # # ##??? | | ???????????????# @ # [ / ###?? | | ????????????????########## # #### ##??? | | ??????????????????????#??#t g# "%#### ##??? | | ???????????????????????#?# #[[T[#### ##??? | | ?????????????????? ?????## #=["%##?? ##??? | | ??????????????????? ?????# #==%!##?? ##??# | | ?????????????????????????# ###/###?? ##??? | | ????????????????????????## ###%###?? ##??# | | ?????????????????? ?????# !*%[#### ##??? | | ?????????????????????????# == ###?# | | ????????????????????????## ####### ##?#? | | ?????????????????????????# ###?###+##??? | | ??????????????????????#??# [!% # ??????????? | | ?????????????????????????# [! # ??????????? | | ?????????????????????????# !! # ??? ??????? | | ???????????????????????? # ??????????? | | ??????????????????????? + ????? ????? | | ?????????????????????? # ??????????? | | ?????????????????????#### ######### ??????????? | | ????????????????????????#+######### ?????????? | | ??????????????????????????????????????????????? | | ??????????????????????????????????????????????? | | ??????????????????????????????????????????????? | | ??????????????????????????????????????????????? | | ??????????????????????????????????????????????? | +----------------------------------------------------+ Best States ------------- Heat Dissipation 28 Energy Generation 14 Energy Capacity 250 Matter Stores 300 Matter Capacity 300 Sight Range 16 Terrain Scan Range 16 Terrain Scan Density 10 Evasion (%) 44 Recoil Reduction 2 Item Schematics ----------------- None Robot Schematics ------------------ None Fabricated ------------ Nothing Alien Tech Used ----------------- None Achievements -------------- Ambidextrous Challenges ------------ None Game ------ Seed ExoskeletonScatterLink Manual? 0 Play Time 00:18:30 Cumulative 9.9 hours Start 2024.05.21 @ 13:30:06 End 2024.05.21 @ 18:39:23 Sessions 5 Manual Loads 0 Difficulty Rogue Special Mode None Game No. 26 Rogue 26 Adventurer 0 Explorer 0 Win Type - Total 0 Types 0/0/0/0/0/0/0/0/0 Lore% 6 Gallery% 17 Achievement% 17 Wizard Run 0 Options --------- Layout 2 ASCII 0 Keyboard 0 Movement Mouse Keybinds 0 Fullscreen 2 Font 24/Smallcaps Map View 50x44 Zoom Use 0% Tactical HUD 1 Map Filters NONE Filters NONE Steam 1 RUN: 19aa8dae-0d22-401b-9b53-c471814c5bef